bitfinex-derivatives/quotes_SOLF0:USTF0_20241101
["timestamp","ask_amount","ask_price","bid_price","bid_amount"]
[1730481811025,2.9905,167.24,167.21,2.9909]
[1730481813520,2.9905,167.24,167.18,17.0913817]
[1730481813718,14.3677817,167.28,167.2,14.3677817]
[1730481813915,2.9901,167.26,167.2,14.3677817]
[1730481814326,2.5315,167.3,167.2,14.3677817]
[1730481814515,2.99,167.27,167.22,14.3677817]
[1730481814715,2.99,167.27,167.23,4.42]
[1730481815025,2.99,167.27,167.24,2.9903]
[1730481815326,2.9901,167.26,167.24,2.9903]
[1730481815516,2.9901,167.26,167.23,7.4105]
[1730481815827,1.2712,167.3,167.23,4.42]
[1730481816015,2.9904,167.24,167.23,4.42]
[1730481818128,1.2712,167.3,167.23,4.42]
[1730481818428,2.9902,167.25,167.23,4.42]
[1730481820022,2.9904,167.24,167.23,4.42]
[1730481820623,14.3677817,167.28,167.2,2.991]
[1730481820935,2.9907,167.23,167.2,7.391]
[1730481821626,2.9908,167.22,167.2,7.391]
[1730481822127,2.9906,167.23,167.2,7.391]
[1730481824127,2.9906,167.23,167.2,4.4]
[1730481824328,2.9906,167.23,167.21,2.9909]
[1730481825628,1.2712,167.3,167.15,14.3677817]
[1730481825629,14.3677817,167.26,167.15,14.3677817]
[1730481825831,14.3677817,167.26,167.17,2.9916]
[1730481826345,2.9913,167.2,167.17,2.9916]
[1730481827423,2.9913,167.2,167.18,2.9914]
[1730481827632,2.991,167.21,167.16,4.4]
[1730481827926,14.3677817,167.26,167.16,4.4]
[1730481828230,14.3677817,167.26,167.17,2.9916]
[1730481830028,14.3677817,167.24,167.16,7.3918]
[1730481830336,1.3552,167.23,167.16,4.4]
[1730481831038,2.9914,167.19,167.17,2.9916]
[1730481831332,1.3552,167.23,167.16,4.4]
[1730481831935,2.9916,167.18,167.16,7.3918]
[1730481832137,2.9916,167.18,167.16,2.9918]
[1730481833038,2.9916,167.18,167.15,4.4]
[1730481833039,1.3552,167.23,167.15,4.4]
[1730481833334,1.3552,167.23,167.09,10.0888]
[1730481833335,14.3677817,167.22,167.1,14.3677817]
[1730481833534,14.3677817,167.2,167.11,4.4]
[1730481833738,2.9916,167.18,167.14,2.9921]
[1730481833937,14.3677817,167.22,167.14,2.9921]
[1730481834438,2.9919,167.16,167.14,2.9921]
[1730481834737,14.3677817,167.22,167.11,4.4]
[1730481834939,2.9917,167.17,167.14,2.9921]
[1730481835139,14.3677817,167.22,167.14,2.9921]
[1730481835535,14.3677817,167.2,167.12,2.9924]
[1730481835731,14.3677817,167.17,167.09,1.3705]
[1730481836047,14.3677817,167.17,167.1,4.4]
[1730481836337,2.9925,167.13,167.1,7.3927]
[1730481837033,5.9819,167.22,167.11,2.9927]
[1730481837034,2.9923,167.14,167.11,2.9927]
[1730481839333,2.9923,167.14,167.1,4.4]
[1730481839635,2.9923,167.14,167.12,2.9925]
[1730481839841,14.3677817,167.17,167.1,4.4]
[1730481840038,14.3677817,167.17,167.1,7.3928]
[1730481840342,14.3677817,167.17,167.1,4.4]
[1730481840731,14.3677817,167.17,167.11,2.9927]
[1730481840930,2.9923,167.14,167.1,4.4]
[1730481841127,14.3677817,167.19,167.1,4.4]
[1730481841541,1.3552,167.23,167.13,14.3677817]
[1730481842040,2.9911,167.21,167.17,2.9916]
[1730481842338,2.9911,167.21,167.16,4.4]
[1730481842740,10.5474484,167.23,167.18,12.1837484]
[1730481842940,9.1922484,167.21,167.16,13.5922484]
[1730481843347,9.1922484,167.21,167.17,2.9916]
[1730481844044,12.1832484,167.21,167.18,2.9913]
[1730481844242,12.1832484,167.21,167.16,13.5922484]
[1730481844243,9.1922484,167.26,167.2,9.1922484]
[1730481844936,9.1922484,167.25,167.21,2.9908]
[1730481845136,9.1922484,167.25,167.17,1.3227]
[1730481845137,14.36020019,167.27,167.17,15.68290019]
[1730481845737,1.3566,167.28,167.16,4.4]
[1730481845738,14.36020019,167.25,167.16,4.4]
[1730481846133,14.36020019,167.23,167.16,4.4]
[1730481847336,2.9914,167.19,167.16,4.4]
[1730481847532,14.36020019,167.25,167.16,4.4]
[1730481847748,1.3566,167.28,167.19,14.36020019]
[1730481848044,2.7248,167.3,167.21,14.36020019]
[1730481848231,1.3878,167.3,167.22,4.38]
[1730481848640,1.3739,167.33,167.23,14.36020019]
[1730481849039,0.9710118,167.32,167.23,14.36020019]
[1730481849242,2.9896,167.29,167.26,2.9899]
[1730481849442,2.9896,167.29,167.23,15.68840019]
[1730481850041,2.9895,167.3,167.26,2.9899]
[1730481850437,1.3739,167.33,167.26,2.9899]
[1730481851242,2.9895,167.29,167.26,2.9899]
[1730481852357,15.66330019,167.34,167.23,15.68840019]
[1730481852358,2.9892,167.31,167.27,2.9897]
[1730481852658,16.96340019,167.4,167.3,14.36020019]
[1730481852951,2.9882,167.37,167.32,2.9889]
[1730481853155,15.62890019,167.4,167.31,4.38]
[1730481853551,15.62890019,167.4,167.31,5.672]
[1730481854048,14.36020019,167.4,167.31,5.672]
[1730481854237,14.36020019,167.43,167.32,1.3359]
[1730481854438,14.36020019,167.4,167.31,4.38]
[1730481854745,14.36020019,167.38,167.31,4.38]
[1730481854953,2.9885,167.35,167.31,7.369]
[1730481855342,14.36020019,167.37,167.31,4.38]
[1730481855548,2.989,167.32,167.31,4.38]
[1730481859357,2.6975,167.36,167.25,2.6716]
[1730481859358,2.9896,167.29,167.25,2.6716]
[1730481859561,14.36020019,167.33,167.25,2.6716]
[1730481859862,14.36020019,167.33,167.26,4.38]
[1730481860155,2.9894,167.3,167.26,4.38]
[1730481860357,2.9894,167.3,167.26,7.3699]
[1730481860546,2.9894,167.3,167.26,4.38]
[1730481860949,2.9894,167.3,167.27,2.9898]
[1730481861858,2.9895,167.3,167.26,7.37]
[1730481863659,2.9899,167.27,167.26,4.38]
[1730481863964,1.3079,167.36,167.26,18.74020019]
[1730481864146,2.9891,167.32,167.26,18.74020019]
[1730481864345,1.3079,167.36,167.26,18.74020019]
[1730481864549,14.36020019,167.35,167.26,4.38]
[1730481864758,14.36020019,167.35,167.27,2.9898]
[1730481865153,2.9893,167.31,167.28,2.9897]
[1730481865350,1.3079,167.36,167.26,18.74020019]
[1730481865856,2.9891,167.32,167.29,2.9895]
[1730481866052,2.9891,167.32,167.26,18.74020019]
[1730481866558,1.3079,167.36,167.26,18.74020019]
[1730481866760,15.66810019,167.36,167.26,18.74020019]
[1730481867763,15.66810019,167.36,167.27,2.9898]
[1730481867764,2.9894,167.3,167.27,2.9898]
[1730481868561,2.9895,167.29,167.26,7.3699]
[1730481868764,14.36020019,167.34,167.26,4.38]
[1730481869458,2.9896,167.29,167.26,4.38]
[1730481870067,2.9896,167.29,167.26,7.3699]
[1730481870458,2.9898,167.28,167.26,4.38]
[1730481870764,14.36020019,167.32,167.25,4.38]
[1730481871959,2.9897,167.29,167.26,2.99]
[1730481873065,14.36020019,167.32,167.25,4.38]
[1730481873267,14.36020019,167.35,167.27,2.9898]
[1730481873459,0.97076596,167.34,167.27,2.9898]
[1730481873869,2.9895,167.3,167.27,2.9898]
[1730481874567,2.9899,167.27,167.25,7.3701]
[1730481874861,14.36020019,167.33,167.25,7.3701]
[1730481875059,14.36020019,167.33,167.25,4.38]
[1730481876169,2.9899,167.27,167.25,4.38]
[1730481876361,5.977,167.35,167.22,2.9907]
[1730481876362,14.36020019,167.3,167.22,2.9907]
[1730481876568,14.36020019,167.28,167.22,4.38]
[1730481876763,2.9908,167.22,167.21,4.38]
[1730481877072,14.36020019,167.26,167.19,4.38]
[1730481877267,14.36020019,167.26,167.18,4.38]
[1730481877961,2.9909,167.22,167.19,2.9913]
[1730481878165,14.36020019,167.26,167.19,2.9913]
[1730481878360,14.36020019,167.26,167.18,4.38]
[1730481878667,14.36020019,167.26,167.18,7.3714]
[1730481879471,14.36020019,167.28,167.18,4.38]
[1730481879672,2.9905,167.24,167.21,2.9909]
[1730481879867,14.36020019,167.28,167.21,2.9909]
[1730481880558,14.36020019,167.28,167.18,4.38]
[1730481880559,2.9907,167.23,167.2,2.9911]
[1730481881571,14.36020019,167.28,167.19,14.36020019]
[1730481882565,2.9905,167.24,167.21,2.9908]
[1730481883372,2.991,167.21,167.19,2.9912]
[1730481883673,14.36020019,167.26,167.18,4.38]
[1730481884163,14.36020019,167.26,167.2,2.9911]
[1730481884164,2.9908,167.22,167.2,2.9911]
[1730481884364,2.9908,167.22,167.2,4.36]
[1730481884560,14.36020019,167.24,167.2,4.36]
[1730481885175,2.9909,167.21,167.2,4.36]
[1730481889175,14.36020019,167.22,167.14,1.3223]
[1730481889478,14.36020019,167.22,167.15,4.36]
[1730481889870,2.9918,167.16,167.15,4.36]
[1730481890279,2.9918,167.16,167.14,2.9922]
[1730481890665,14.36020019,167.19,167.13,2.9924]
[1730481890870,14.36020019,167.19,167.13,7.3524]
[1730481891171,2.9919,167.16,167.13,7.3524]
[1730481894779,14.36020019,167.19,167.09,15.66540019]
[1730481894979,14.36020019,167.19,167.1,4.36]
[1730481895571,2.9921,167.15,167.12,2.9924]
[1730481896679,2.9922,167.14,167.12,2.9924]
[1730481896876,14.36020019,167.19,167.1,7.3528]
[1730481897183,14.36020019,167.19,167.1,4.36]
[1730481897677,2.9923,167.14,167.11,2.9927]
[1730481900281,2.9929,167.11,167.09,1.3052]
[1730481900579,14.36020019,167.15,167.05,14.36020019]
[1730481900772,2.9929,167.11,167.08,7.3532]
[1730481901576,14.36020019,167.15,167.07,2.9934]
[1730481902274,14.36020019,167.15,167.06,4.36]
[1730481902275,2.9938,167.05,167.02,2.9942]
[1730481902885,9.19969583,167.06,167.02,2.9942]
[1730481903080,1.331,167.14,166.98,2.5608]
[1730481903081,9.19969583,167.04,166.99,16.55449583]
[1730481903482,9.19969583,167.01,166.96,10.54569583]
[1730481903681,9.19969583,167.0,166.96,4.36]
[1730481904282,2.9952,166.97,166.96,4.36]
[1730481904988,2.9956,166.95,166.91,9.19969583]
[1730481905188,9.19969583,166.96,166.91,9.19969583]
[1730481905388,9.19969583,166.97,166.91,9.19969583]
[1730481905880,9.19969583,166.95,166.9,13.55969583]
[1730481906588,4.36,167.05,166.9,4.36]
[1730481906589,14.39460583,166.99,166.9,4.36]
[1730481907289,14.39460583,167.01,166.91,14.39460583]
[1730481907891,2.9951,166.98,166.93,2.9958]
[1730481908389,2.9953,166.97,166.93,2.9958]
[1730481909085,14.39460583,167.01,166.91,14.39460583]
[1730481909280,14.39460583,166.99,166.91,2.9961]
[1730481909688,2.9956,166.95,166.91,2.9961]
[1730481911194,2.9956,166.96,166.92,2.996]
[1730481911495,14.39460583,166.99,166.9,4.36]
[1730481911697,14.39460583,166.99,166.92,2.9961]
[1730481911896,14.39460583,167.01,166.9,4.36]
[1730481912197,14.39460583,167.03,166.93,14.39460583]
[1730481913097,2.995,166.99,166.96,2.9954]
[1730481913388,2.995,166.99,166.93,14.39460583]
[1730481914195,2.995,166.99,166.96,2.9954]
[1730481914698,14.39460583,167.03,166.96,4.34]
[1730481914994,15.71260583,167.06,166.96,18.73460583]
[1730481915196,15.71260583,167.06,166.96,4.34]
[1730481915396,2.9947,167.01,166.97,2.9951]
[1730481915894,14.39460583,167.03,166.96,4.34]
[1730481916289,15.71260583,167.06,166.96,18.73460583]
[1730481916690,1.318,167.06,166.98,14.39460583]
[1730481916890,14.39460583,167.08,166.98,14.39460583]
[1730481917092,14.39460583,167.08,166.96,4.34]
[1730481917093,2.9933,167.08,167.0,14.39460583]
[1730481917999,15.69890583,167.1,167.0,14.39460583]
[1730481918293,15.69890583,167.1,167.06,2.9936]
[1730481918294,2.9931,167.09,167.06,2.9936]
[1730481918700,14.39460583,167.1,167.03,4.34]
[1730481918897,2.9933,167.08,167.05,2.9938]
[1730481919493,2.9932,167.09,167.05,2.9938]
[1730481919892,2.9933,167.08,167.05,2.9938]
[1730481920096,14.39460583,167.1,167.03,4.34]
[1730481920291,14.39460583,167.08,166.97,14.39460583]
[1730481920599,2.9943,167.03,167.0,2.9947]
[1730481921098,2.9943,167.03,166.98,4.34]
[1730481921099,2.9944,167.02,166.99,2.9949]
[1730481921302,14.39460583,167.06,166.98,4.34]
[1730481922293,2.9942,167.03,166.98,4.34]
[1730481923305,2.9941,167.04,166.98,4.34]
[1730481923503,14.39460583,167.06,166.98,4.34]
[1730481923900,2.9941,167.04,166.98,7.3349]
[1730481924192,14.39460583,167.06,166.98,4.34]
[1730481924397,2.9947,167.01,166.98,4.34]
[1730481924998,14.39460583,167.04,166.98,4.34]
[1730481925900,14.39460583,167.04,166.95,2.9955]
[1730481926109,14.39460583,167.01,166.95,2.9955]
[1730481926502,2.995,166.99,166.96,2.9954]
[1730481928200,14.39460583,167.04,166.94,5.6543]
[1730481928805,2.9945,167.02,166.94,5.6543]
[1730481929195,14.39460583,167.04,166.94,5.6543]
[1730481929399,2.9945,167.01,166.98,2.9949]
[1730481929912,2.995,166.99,166.95,2.9955]
[1730481930103,14.39460583,167.01,166.95,2.9955]
[1730481930499,2.9952,166.98,166.95,2.9955]
[1730481932506,2.9948,167.0,166.97,2.9952]
[1730481932705,2.9948,167.0,166.94,4.34]
[1730481932917,14.39460583,167.03,166.94,4.34]
[1730481933115,2.9944,167.02,166.99,2.9948]
[1730481934012,2.9946,167.01,166.99,2.9948]
[1730481935801,2.9939,167.05,167.02,2.9942]
[1730481936010,15.73990583,167.08,167.0,4.34]
[1730481936217,14.39460583,167.06,167.0,4.34]
[1730481936406,14.39460583,167.04,167.0,4.34]
[1730481936919,2.9943,167.03,167.0,7.3347]
[1730481937610,1.3453,167.08,167.0,4.34]
[1730481937611,2.9945,167.01,167.0,4.34]
[1730481937914,14.39460583,167.02,166.96,4.32]
[1730481938212,2.995,166.99,166.96,7.3153]
[1730481938511,14.39460583,167.02,166.96,4.32]
[1730481938914,2.9944,167.02,166.99,2.9948]
[1730481939121,14.39460583,167.04,166.96,4.32]
[1730481939620,2.9944,167.02,166.99,2.9948]
[1730481939806,2.84309393,167.02,166.99,2.9948]
[1730481941509,2.9951,166.98,166.95,2.9956]
[1730481941708,14.39460583,167.02,166.95,4.32]
[1730481942505,2.9949,166.99,166.95,4.32]
[1730481943110,2.9951,166.98,166.96,2.9954]
[1730481943420,14.39460583,167.02,166.96,2.9954]
[1730481943610,2.995,166.99,166.96,2.9954]
[1730481943817,14.39460583,167.0,166.92,1.2621]
[1730481944014,14.39460583,167.0,166.93,4.32]
[1730481944209,2.9955,166.96,166.92,4.32]
[1730481944414,2.9955,166.96,166.93,2.9959]
[1730481945624,14.39460583,166.98,166.91,4.32]
[1730481946124,2.9959,166.94,166.91,7.3162]
[1730481946925,2.9959,166.94,166.92,2.9961]
[1730481947421,2.9957,166.95,166.92,2.9961]
[1730481948726,14.39460583,166.98,166.92,2.9961]
[1730481950027,1.3683,167.01,166.9,2.9964]
[1730481950028,14.39460583,166.95,166.9,2.9964]
[1730481950219,14.39460583,166.95,166.89,4.32]
[1730481950418,14.39460583,167.0,166.9,14.39460583]
[1730481950723,2.9952,166.98,166.95,2.9956]
[1730481950925,14.39460583,167.0,166.95,2.9956]
[1730481952229,2.9953,166.97,166.95,2.9956]
[1730481952525,14.39460583,167.0,166.9,14.39460583]
[1730481952716,1.3683,167.01,166.93,2.9959]
[1730481952717,14.39460583,166.98,166.93,2.9959]
[1730481952914,14.39460583,166.98,166.89,4.32]
[1730481953118,14.39460583,167.02,166.97,2.9951]
[1730481953311,14.39460583,167.02,166.92,14.39460583]
[1730481953312,14.39460583,167.02,166.95,4.32]
[1730481954720,1.3496,167.03,166.95,4.32]
[1730481955124,15.74420583,167.03,166.96,2.9953]
[1730481956227,2.995,166.99,166.96,2.9953]
[1730481956728,2.9953,166.97,166.94,7.3157]
[1730481957026,14.39460583,167.01,166.89,17.00290583]
[1730481957225,14.39460583,166.98,166.9,4.32]
[1730481957528,2.9955,166.96,166.93,2.9959]
[1730481957826,14.39460583,166.98,166.93,2.9959]
[1730481958631,2.9955,166.96,166.93,2.9959]
[1730481959825,14.39460583,166.98,166.9,4.32]
[1730481960023,14.39460583,166.98,166.92,2.9961]
[1730481960429,2.9958,166.95,166.92,2.9961]
[1730481961731,2.9955,166.96,166.9,4.32]
[1730481962128,14.39460583,166.98,166.9,4.32]
[1730481962333,14.39460583,166.96,166.9,4.32]
[1730481962535,14.39460583,166.96,166.89,1.3373]
[1730481962536,14.39460583,166.96,166.89,4.32]
[1730481962925,14.39460583,166.93,166.86,58.57579565]
[1730481963642,2.9962,166.92,166.89,2.9966]
[1730481964130,14.39460583,166.93,166.89,2.9966]
[1730481964333,2.9964,166.91,166.89,2.9966]
[1730481965124,2.9962,166.92,166.89,2.9966]
[1730481965327,15.71990583,166.95,166.9,2.9964]
[1730481965725,2.9961,166.93,166.9,2.9964]
[1730481965924,15.71990583,166.95,166.91,2.9962]
[1730481966130,14.39460583,166.95,166.91,2.9962]
[1730481966339,14.39460583,166.97,166.87,14.39460583]
[1730481966534,17.15660583,166.99,166.89,14.39460583]
[1730481966723,17.15660583,166.99,166.9,1.3561]
[1730481966724,15.76020583,166.99,166.9,1.3561]
[1730481966929,15.76020583,166.99,166.9,2.6363]
[1730481967236,2.9952,166.98,166.9,2.6363]
[1730481967738,2.9952,166.98,166.95,2.9955]
[1730481968135,15.76020583,166.99,166.95,2.9955]
[1730481968337,2.9953,166.97,166.95,2.9955]
[1730481968845,7.0688,167.06,166.93,4.3]
[1730481968846,17.38910583,167.02,166.93,4.3]
[1730481969033,14.39460583,167.02,166.93,4.3]
[1730481969839,2.9947,167.0,166.97,2.9951]
[1730481972635,14.39460583,167.04,166.94,14.39460583]
[1730481973144,2.9942,167.03,167.0,2.9946]
[1730481973641,2.994,167.04,167.01,2.9944]
[1730481973835,15.78970583,167.06,166.99,4.3]
[1730481975245,2.9943,167.03,167.0,2.9946]
[1730481976255,15.78970583,167.06,166.99,4.3]
[1730481976539,2.9942,167.04,167.01,2.9945]
[1730481976853,15.78970583,167.06,166.96,14.39460583]
[1730481977142,15.78970583,167.06,166.98,4.3]
[1730481977535,2.9941,167.04,167.01,2.9945]
[1730481978034,15.78970583,167.06,167.0,2.9946]
[1730481978035,2.9939,167.05,167.0,2.9946]
[1730481978238,2.9939,167.05,166.98,4.3]
[1730481978844,2.9939,167.05,167.02,2.9943]
[1730481979545,14.39460583,167.06,166.98,4.3]
[1730481979741,2.9944,167.02,166.98,4.3]
[1730481980244,2.9944,167.02,166.99,2.9948]
[1730481980837,14.39460583,167.03,166.98,4.3]
[1730481981153,14.39460583,167.09,166.98,4.3]
[1730481981154,14.39460583,167.01,166.98,4.3]
[1730481981444,14.39460583,167.01,166.89,5.9931]
[1730481981445,2.9954,166.97,166.92,2.996]
[1730481981640,14.39460583,166.99,166.9,4.3]
[1730481982639,2.9954,166.97,166.93,2.9958]
[1730481983038,2.9954,166.97,166.92,2.996]
[1730481983348,2.9954,166.97,166.91,1.3867]
[1730481984641,2.9954,166.97,166.94,2.9957]
[1730481985236,14.39460583,166.99,166.91,1.3867]
[1730481985437,14.39460583,166.99,166.91,5.6867]
[1730481985641,1.341,167.03,166.88,1.2837]
[1730481985642,14.39460583,166.97,166.88,1.2837]
[1730481985849,14.39460583,166.97,166.88,5.5837]
[1730481986050,14.39460583,166.97,166.85,15.65840583]
[1730481986051,2.9961,166.93,166.85,15.65840583]
[1730481986348,14.39460583,166.93,166.85,5.5638]
[1730481986733,2.9966,166.9,166.85,5.5638]
[1730481988246,2.9966,166.9,166.87,2.9969]
[1730481990739,2.9966,166.9,166.88,2.9968]
[1730481991052,2.9961,166.93,166.85,19.95840583]
[1730481991553,2.9959,166.94,166.85,19.95840583]
[1730481991752,14.39460583,166.95,166.85,19.95840583]
[1730481992345,2.996,166.93,166.85,19.95840583]
[1730481992545,14.39460583,166.95,166.85,19.95840583]
[1730481993254,2.9963,166.92,166.89,2.9966]
[1730481994461,14.39460583,166.95,166.88,2.9968]
[1730481994462,2.9964,166.91,166.88,2.9968]
[1730481995159,2.9962,166.92,166.89,2.9967]
[1730481995759,2.996,166.93,166.9,2.9964]
[1730481996152,14.39460583,166.95,166.86,4.3]
[1730481997040,2.9961,166.93,166.9,2.9964]
[1730481998150,2.9961,166.93,166.86,4.3]
[1730481998349,14.39460583,166.95,166.86,4.3]
[1730481998549,2.9959,166.94,166.86,4.3]
[1730481999145,2.9963,166.92,166.89,2.9967]
[1730481999353,14.39460583,166.93,166.85,1.2638]
[1730481999541,14.39460583,166.93,166.86,4.28]
[1730481999744,2.9964,166.91,166.88,2.9967]
[1730481999944,14.39460583,166.93,166.86,4.28]
[1730482000345,14.39460583,166.93,166.88,2.9968]
[1730482000346,2.9964,166.91,166.88,2.9968]
[1730482002856,14.39460583,166.95,166.86,4.28]
[1730482003547,2.9962,166.92,166.89,2.9966]
[1730482004354,14.39460583,166.95,166.86,4.28]
[1730482004551,14.39460583,166.93,166.86,4.28]
[1730482005158,2.9966,166.9,166.87,2.9969]
[1730482006148,2.9966,166.9,166.88,2.9968]
[1730482008750,2.9962,166.92,166.86,4.28]
[1730482009152,2.9962,166.92,166.89,2.9965]
[1730482009660,14.39460583,166.95,166.89,2.9965]
[1730482009860,2.9964,166.91,166.89,2.9965]
[1730482010360,14.39460583,166.95,166.89,2.9965]
[1730482010560,2.9963,166.91,166.89,2.9965]
[1730482011859,2.9962,166.92,166.86,4.28]
[1730482012062,14.39460583,166.95,166.9,2.9964]
[1730482012555,9.20314889,166.92,166.9,2.9964]
[1730482013453,12.19964889,166.91,166.88,2.9968]
[1730482013659,9.20314889,166.91,166.88,2.9968]
[1730482014162,2.9965,166.9,166.88,2.9968]
[1730482014456,9.20314889,166.91,166.88,2.9968]
[1730482015247,12.19954889,166.91,166.88,2.9968]
[1730482015852,2.9964,166.91,166.88,2.9968]
[1730482017962,2.9964,166.91,166.85,14.74694889]
[1730482018165,2.9964,166.91,166.89,2.9966]
[1730482018364,12.19934889,166.92,166.87,9.20314889]
[1730482018559,5.6311,167.0,166.9,9.20314889]
[1730482018560,9.20314889,166.95,166.9,9.20314889]
[1730482019062,12.19884889,166.95,166.9,9.20314889]
[1730482019965,12.19884889,166.95,166.92,2.996]
[1730482020358,12.19884889,166.95,166.9,9.20314889]
[1730482020359,9.20314889,166.95,166.9,9.20314889]
[1730482020861,9.20314889,166.97,166.9,9.20314889]
[1730482021060,12.19854889,166.97,166.92,9.20314889]
[1730482021660,9.20314889,166.98,166.93,9.20314889]
[1730482022170,9.20314889,166.98,166.95,2.9956]
[1730482022374,2.9953,166.97,166.95,2.9956]
[1730482022867,12.19834889,166.98,166.95,2.9956]
[1730482023459,12.19844889,166.97,166.95,2.9956]
[1730482023764,9.20314889,166.96,166.94,2.9957]
[1730482024266,9.20314889,166.97,166.93,2.9959]
[1730482024563,9.20314889,166.98,166.93,9.20314889]
[1730482025063,9.20314889,166.97,166.92,10.51264889]
[1730482025461,12.19844889,166.97,166.94,2.9956]
[1730482025659,9.20314889,166.95,166.91,13.48314889]
[1730482026071,9.20314889,166.95,166.93,2.9958]
[1730482026855,2.9955,166.96,166.93,2.9958]
[1730482027055,2.9955,166.96,166.94,2.9957]
[1730482027263,9.20314889,166.99,166.94,9.20314889]
[1730482028264,9.20314889,166.95,166.91,4.28]
[1730482028665,1.3744,167.04,166.91,4.28]
[1730482028666,9.20314889,166.97,166.91,13.48314889]
[1730482029373,9.20314889,166.98,166.93,9.20314889]
[1730482029569,1.3744,167.04,166.99,2.9948]
[1730482029570,9.20314889,167.01,166.99,2.9948]
[1730482029872,9.20314889,167.01,166.91,4.28]
[1730482029873,9.20314889,167.0,166.95,9.20314889]
[1730482030068,1.3744,167.04,166.93,9.20314889]
[1730482030069,9.20314889,166.98,166.93,9.20314889]
[1730482030368,12.19824889,166.98,166.95,2.9955]
[1730482030575,9.20314889,167.0,166.95,9.20314889]
[1730482031172,9.20314889,167.01,166.95,9.20314889]
[1730482031376,9.20314889,167.01,166.96,9.20314889]
[1730482031675,9.20314889,167.01,166.97,4.26]
[1730482032670,9.20314889,167.0,166.97,4.26]
[1730482033059,2.9949,167.0,166.98,2.995]
[1730482033265,9.20314889,167.01,166.98,2.995]
[1730482033662,12.19784889,167.01,166.98,2.995]
[1730482033869,9.20314889,167.0,166.97,4.26]
[1730482034070,12.19824889,166.98,166.97,4.26]
[1730482034270,9.20314889,166.98,166.94,4.26]
[1730482035073,12.19824889,166.98,166.95,2.9956]
[1730482035270,2.9951,166.98,166.94,4.26]
[1730482035781,2.9954,166.97,166.94,4.26]
[1730482035965,9.20314889,166.97,166.94,4.26]
[1730482036967,2.9956,166.95,166.94,4.26]
[1730482037876,2.9956,166.95,166.92,2.9961]
[1730482038085,9.20314889,166.94,166.91,4.26]
[1730482038678,2.9961,166.93,166.91,4.26]
[1730482040783,9.20314889,166.94,166.91,4.26]
[1730482041579,9.20314889,166.95,166.91,13.46314889]
[1730482041777,9.20314889,166.97,166.91,13.46314889]
[1730482043278,2.9956,166.95,166.92,2.9961]
[1730482044682,9.20314889,166.95,166.91,13.46314889]
[1730482044888,9.20314889,166.95,166.91,4.26]
[1730482046489,2.9959,166.94,166.91,4.26]
[1730482046683,12.19904889,166.94,166.91,4.26]
[1730482048087,2.9959,166.94,166.91,7.2563]
[1730482048276,9.20314889,166.96,166.91,13.46314889]
[1730482048683,9.20314889,166.96,166.92,2.996]
[1730482048981,12.19874889,166.96,166.92,2.996]
[1730482049378,9.20314889,166.98,166.92,9.20314889]
[1730482049573,9.20314889,166.99,166.94,9.20314889]
[1730482049782,9.20314889,167.02,166.96,9.20314889]
[1730482049973,23.14305165,167.07,166.98,9.20314889]
[1730482049974,9.20314889,167.03,166.98,9.20314889]
[1730482050178,12.19744889,167.03,166.98,9.20314889]
[1730482050377,9.20314889,167.02,166.99,2.9948]
[1730482051291,12.19754889,167.02,166.99,2.9948]
[1730482051683,9.20314889,167.02,166.99,2.9948]
[1730482051881,9.20314889,167.02,167.0,2.9947]
[1730482054597,9.20314889,167.03,166.98,9.20314889]
[1730482054895,9.20314889,167.05,167.0,9.20314889]
[1730482056391,2.9942,167.03,167.0,12.19784889]
[1730482056887,9.20314889,167.05,167.0,12.19784889]
[1730482056888,2.9941,167.04,167.01,2.9945]
[1730482057294,9.20314889,167.05,167.03,2.9941]